[Event "7th Francophone-ch 2019"]
[Site "Paris"]
[Date "2019.08.04"]
[Round "1.1"]
[White "Meslage, Jean"]
[Black "Mastrovasilis, Dimitrios"]
[Result "0-1"]
[ECO "B22"]
[WhiteElo "1794"]
[BlackElo "2589"]
[Annotator "ChessBase"]
[PlyCount "82"]
[EventDate "2019.08.04"]
[EventType "swiss"]
[EventCountry "FRA"]
[SourceTitle "playchess.com"]
[Source "ChessBase"]
[SourceQuality "1"]
[TimeControl "40/5400+30:1800+30"]

1. e4 {[%emt 0:00:00]} c5 {[%emt 0:00:00]} 2. d4 {[%emt 0:00:00]} cxd4 {[%emt 0:00:11]} 3. c3 {[%emt 0:00:00]} Nf6 {[%emt 0:00:38]} 4. e5 {[%emt 0:00:06]} Nd5 {[%emt 0:00:10]} 5. Nf3 {[%emt 0:01:49]} d6 {[%emt 0:02:09]} 6. cxd4 {[%emt 0:02:53]} Nc6 {[%emt 0:01:42]} 7. Bc4 {[%emt 0:02:15]} dxe5 {[%emt 0:03:56]} 8. dxe5 {[%emt 0:01:17]} Ndb4 {[%emt 0:02:32]} 9. Qb3 {[%emt 0:02:33]} e6 {[%emt 0:00:45]} 10. O-O {[%emt 0:01:03]} Na5 {[%emt 0:01:45]} 11. Bb5+ {[%emt 0:03:29]} Bd7 {[%emt 0:00:25]} 12. Qa4 {[%emt 0:02:18]} Bxb5 {[%emt 0:03:32]} 13. Qxb5+ {[%emt 0:00:16]} Nac6 {[%emt 0:00:06]} 14. Nc3 {[%emt 0:03:35]} a6 {[%emt 0:02:11]} 15. Qe2 {[%emt 0:01:45]} Qd3 {[%emt 0:00:53]} 16. Be3 {[%emt 0:03:32]} Be7 {[%emt 0:14:33]} 17. Rfd1 {[%emt 0:03:21]} Qxe2 {[%emt 0:01:06]} 18. Nxe2 {[%emt 0:07:01]} Rd8 {[%emt 0:02:28]} 19. Rxd8+ {[%emt 0:01:56]} Bxd8 {[%emt 0:00:28]} 20. Ned4 {[%emt 0:04:34]} Ne7 {[%emt 0:10:25]} 21. a3 {[%emt 0:56:47]} Nbd5 {[%emt 0:04:33]} 22. Bg5 {[%emt 0:00:00]} Bb6 {[%emt 0:02:53]} 23. Rd1 {[%emt 0:00:00]} h6 {[%emt 0:06:34]} 24. Bc1 {[%emt 0:00:00]} Kd7 {[%emt 0:04:32]} 25. b4 {[%emt 0:00:00]} Nc3 {[%emt 0:06:04]} 26. Rd3 {[%emt 0:00:00]} Ned5 {[%emt 0:00:27]} 27. Bb2 {[%emt 0:00:00]} Na4 {[%emt 0:01:15]} 28. Ba1 {[%emt 0:00:00]} Rc8 {[%emt 0:00:37]} 29. Nb3 {[%emt 0:00:00]} Ke7 {[%emt 0:10:52]} 30. g3 {[%emt 0:00:00]} g5 {[%emt 0:04:01]} 31. Bd4 {[%emt 0:00:00]} Bxd4 {[%emt 0:04:37]} 32. Nfxd4 {[%emt 0:00:00]} Nb2 {[%emt 0:00:43]} 33. Rd2 {[%emt 0:00:00]} Nc4 {[%emt 0:00:37]} 34. Nf5+ {[%emt 0:00:00]} Kf8 {[%emt 0:01:01]} 35. Rd4 {[%emt 0:00:00]} Nxe5 {[%emt 0:00:26]} 36. Kg2 {[%emt 0:00:00]} Rc3 {[%emt 0:01:53]} 37. Nc5 {[%emt 0:00:00]} b6 {[%emt 0:01:21]} 38. Na4 {[%emt 0:00:00]} Rd3 {[%emt 0:03:29]} 39. Nb2 {[%emt 0:01:40]} Rxa3 {[%emt 0:01:07]} 40. Nxh6 {[%emt 0:00:49]} Rb3 {[%emt 0:00:58]} 41. Re4 {[%emt 0:14:20]} Nd7 {[%emt 0:00:00]} 0-1

[Event "7th Francophone-ch 2019"]
[Site "Paris"]
[Date "2019.08.04"]
[Round "1.3"]
[White "Louvrier Saint-Mary, Jean-Roger"]
[Black "Shchekachev, Andrei"]
[Result "0-1"]
[ECO "A01"]
[WhiteElo "1789"]
[BlackElo "2531"]
[Annotator "ChessBase"]
[PlyCount "50"]
[EventDate "2019.08.04"]
[EventType "swiss"]
[EventCountry "FRA"]
[SourceTitle "playchess.com"]
[Source "ChessBase"]
[SourceQuality "1"]
[TimeControl "40/5400+30:1800+30"]

1. b3 {[%emt 0:00:00]} Nf6 {[%emt 0:01:42]} 2. Bb2 {[%emt 0:00:00]} g6 {[%emt 0:00:06]} 3. Bxf6 {[%emt 0:00:00]} exf6 {[%emt 0:00:09]} 4. c4 {[%emt 0:00:00]} d5 {[%emt 0:00:50]} 5. cxd5 {[%emt 0:08:39]} Qxd5 {[%emt 0:00:26]} 6. Nc3 {[%emt 0:00:34]} Qd8 {[%emt 0:00:31]} 7. e3 {[%emt 0:05:35]} Nd7 {[%emt 0:03:20]} 8. Rc1 {[%emt 0:01:18]} c6 {[%emt 0:00:12]} 9. f4 {[%emt 0:02:34]} Ba3 {[%emt 0:06:43]} 10. Rc2 {[%emt 0:04:19]} Qe7 {[%emt 0:00:21]} 11. Be2 {[%emt 0:05:52]} O-O {[%emt 0:06:20]} 12. Nf3 {[%emt 0:02:58]} Nb6 {[%emt 0:01:49]} 13. Bd3 {[%emt 0:04:10]} Rd8 {[%emt 0:13:25]} 14. Qe2 {[%emt 0:01:45]} Bg4 {[%emt 0:08:01]} 15. h3 {[%emt 0:04:41]} Bxf3 {[%emt 0:00:50]} 16. gxf3 {[%emt 0:00:11]} f5 {[%emt 0:01:10]} 17. O-O {[%emt 0:07:52]} Rd7 {[%emt 0:08:38]} 18. Bc4 {[%emt 0:02:44]} Re8 {[%emt 0:00:07]} 19. Qf2 {[%emt 0:11:10]} a6 {[%emt 0:05:23]} 20. Kh1 {[%emt 0:16:52]} Bb4 {[%emt 0:03:33]} 21. Nb1 {[%emt 0:01:16]} Qd8 {[%emt 0:01:38]} 22. Re1 {[%emt 0:11:32]} Be7 {[%emt 0:02:07]} 23. Re2 {[%emt 0:01:40]} Na8 {[%emt 0:01:40]} 24. d4 {[%emt 0:05:41]} c5 {[%emt 0:02:26]} 25. dxc5 {[%emt 0:00:20]} Bh4 {[%emt 0:01:30]} 0-1

[Event "7th Francophone-ch 2019"]
[Site "Paris"]
[Date "2019.08.04"]
[Round "1.4"]
[White "Mastrovasilis, Athanasios"]
[Black "Maiffret, Patrick"]
[Result "1-0"]
[ECO "E09"]
[WhiteElo "2518"]
[BlackElo "1823"]
[Annotator "ChessBase"]
[PlyCount "49"]
[EventDate "2019.08.04"]
[EventType "swiss"]
[EventCountry "FRA"]
[SourceTitle "playchess.com"]
[Source "ChessBase"]
[SourceQuality "1"]
[TimeControl "40/5400+30:1800+30"]

1. d4 {[%emt 0:00:00]} d5 {[%emt 0:00:00]} 2. c4 {[%emt 0:00:00]} c6 {[%emt 0:00:00]} 3. Nf3 {[%emt 0:00:04]} Nf6 {[%emt 0:00:00]} 4. Qc2 {[%emt 0:00:54]} e6 {[%emt 0:00:02]} 5. Nbd2 {[%emt 0:00:41]} Nbd7 {[%emt 0:01:50]} 6. g3 {[%emt 0:00:33]} c5 {[%emt 0:02:10]} 7. Bg2 {[%emt 0:03:24]} Be7 {[%emt 0:02:24]} 8. O-O {[%emt 0:01:35]} O-O {[%emt 0:00:09]} 9. Rd1 {[%emt 0:06:14]} cxd4 {[%emt 0:10:36]} 10. Nxd4 {[%emt 0:01:02]} Qb6 {[%emt 0:14:24]} 11. N2b3 {[%emt 0:03:33]} Ne5 {[%emt 0:06:38]} 12. cxd5 {[%emt 0:09:34]} Nxd5 {[%emt 0:02:10]} 13. e4 {[%emt 0:01:07]} Nb4 {[%emt 0:01:09]} 14. Qe2 {[%emt 0:00:19]} Qa6 {[%emt 0:04:43]} 15. Qxa6 {[%emt 0:03:31]} Nxa6 {[%emt 0:01:09]} 16. f4 {[%emt 0:00:22]} Nc4 {[%emt 0:01:45]} 17. Bf1 {[%emt 0:01:19]} Nd6 {[%emt 0:06:01]} 18. e5 {[%emt 0:09:01]} Ne4 {[%emt 0:00:53]} 19. Bg2 {[%emt 0:03:01]} Nec5 {[%emt 0:01:18]} 20. Be3 {[%emt 0:01:05]} Rd8 {[%emt 0:03:46]} 21. Nb5 {[%emt 0:06:47]} Bd7 {[%emt 0:08:14]} 22. Nd6 {[%emt 0:00:46]} Nxb3 {[%emt 0:00:38]} 23. axb3 {[%emt 0:00:46]} Bxd6 {[%emt 0:04:17]} 24. Rxd6 {[%emt 0:03:17]} Nb4 {[%emt 0:02:01]} 25. Rad1 {[%emt 0:01:01]} 1-0

[Event "7th Francophone-ch 2019"]
[Site "Paris"]
[Date "2019.08.04"]
[Round "1.5"]
[White "Aw, Wai Onn"]
[Black "Flom, Gabriel"]
[Result "0-1"]
[ECO "A48"]
[WhiteElo "1913"]
[BlackElo "2494"]
[Annotator "ChessBase"]
[PlyCount "76"]
[EventDate "2019.08.04"]
[EventType "swiss"]
[EventCountry "FRA"]
[SourceTitle "playchess.com"]
[Source "ChessBase"]
[SourceQuality "1"]
[TimeControl "40/5400+30:1800+30"]

1. d4 {[%emt 0:00:00]} Nf6 {[%emt 0:00:00]} 2. Nf3 {[%emt 0:00:00]} g6 {[%emt 0:00:00]} 3. Bf4 {[%emt 0:00:00]} Bg7 {[%emt 0:00:05]} 4. e3 {[%emt 0:00:52]} d6 {[%emt 0:00:06]} 5. h3 {[%emt 0:00:37]} O-O {[%emt 0:00:08]} 6. Be2 {[%emt 0:00:50]} b6 {[%emt 0:00:06]} 7. O-O {[%emt 0:01:30]} Bb7 {[%emt 0:00:04]} 8. c3 {[%emt 0:02:34]} Nbd7 {[%emt 0:00:11]} 9. Nbd2 {[%emt 0:01:45]} Re8 {[%emt 0:00:07]} 10. Nc4 {[%emt 0:04:49]} a6 {[%emt 0:05:07]} 11. Bh2 {[%emt 0:00:21]} e6 {[%emt 0:01:12]} 12. Rc1 {[%emt 0:04:15]} Qe7 {[%emt 0:00:07]} 13. Qb3 {[%emt 0:02:06]} Rad8 {[%emt 0:00:16]} 14. Qa3 {[%emt 0:03:09]} Ne4 {[%emt 0:06:48]} 15. Ncd2 {[%emt 0:01:57]} Nxd2 {[%emt 0:02:15]} 16. Nxd2 {[%emt 0:00:21]} e5 {[%emt 0:00:17]} 17. Rfe1 {[%emt 0:09:15]} h5 {[%emt 0:03:14]} 18. b4 {[%emt 0:00:06]} d5 {[%emt 0:13:58]} 19. Qb3 {[%emt 0:02:20]} b5 {[%emt 0:00:15]} 20. dxe5 {[%emt 0:02:53]} Nxe5 {[%emt 0:01:06]} 21. Nf3 {[%emt 0:00:11]} Nc4 {[%emt 0:00:09]} 22. Nd4 {[%emt 0:01:33]} Nb6 {[%emt 0:04:25]} 23. Bf3 {[%emt 0:01:36]} c5 {[%emt 0:01:00]} 24. Ne2 {[%emt 0:00:59]} Nc4 {[%emt 0:01:45]} 25. Rcd1 {[%emt 0:01:33]} Ne5 {[%emt 0:07:56]} 26. Bxe5 {[%emt 0:00:37]} Bxe5 {[%emt 0:00:02]} 27. bxc5 {[%emt 0:00:29]} Qxc5 {[%emt 0:00:02]} 28. Nd4 {[%emt 0:00:19]} Bb8 {[%emt 0:04:25]} 29. Qb4 {[%emt 0:05:50]} Qc7 {[%emt 0:00:27]} 30. g3 {[%emt 0:01:43]} h4 {[%emt 0:00:07]} 31. Ne2 {[%emt 0:00:05]} hxg3 {[%emt 0:00:37]} 32. Nxg3 {[%emt 0:00:48]} Qe5 {[%emt 0:03:31]} 33. Qd4 {[%emt 0:03:56]} Rc8 {[%emt 0:00:23]} 34. Kg2 {[%emt 0:01:33]} Rxc3 {[%emt 0:01:42]} 35. Qb6 {[%emt 0:00:23]} Re7 {[%emt 0:09:53]} 36. Qd8+ {[%emt 0:03:13]} Kg7 {[%emt 0:00:32]} 37. Rd4 {[%emt 0:44:02]} Bc7 {[%emt 0:00:28]} 38. Nh5+ {[%emt 0:00:00]} gxh5 {[%emt 0:00:14]} 0-1

[Event "7th Francophone-ch 2019"]
[Site "Paris"]
[Date "2019.08.04"]
[Round "1.6"]
[White "Vedmediuc, Serghei"]
[Black "Bongo Akanga Ndjila, Barthelemy"]
[Result "1-0"]
[ECO "B01"]
[WhiteElo "2450"]
[BlackElo "1804"]
[Annotator "ChessBase"]
[PlyCount "71"]
[EventDate "2019.08.04"]
[EventType "swiss"]
[EventCountry "FRA"]
[SourceTitle "playchess.com"]
[Source "ChessBase"]
[SourceQuality "1"]
[TimeControl "40/5400+30:1800+30"]

1. e4 {[%emt 0:00:00]} d5 {[%emt 0:02:55]} 2. exd5 {[%emt 0:00:00]} Qxd5 {[%emt 0:00:07]} 3. Nc3 {[%emt 0:00:09]} Qa5 {[%emt 0:00:05]} 4. d4 {[%emt 0:00:05]} c6 {[%emt 0:00:04]} 5. Nf3 {[%emt 0:01:24]} Bf5 {[%emt 0:00:35]} 6. Ne5 {[%emt 0:08:19]} Nf6 {[%emt 0:03:36]} 7. g4 {[%emt 0:07:44]} Be6 {[%emt 0:01:47]} 8. Nc4 {[%emt 0:07:10]} Bxc4 {[%emt 0:03:41]} 9. Bxc4 {[%emt 0:00:23]} e6 {[%emt 0:00:03]} 10. Bd2 {[%emt 0:09:12]} Nbd7 {[%emt 0:01:32]} 11. g5 {[%emt 0:01:16]} Ng8 {[%emt 0:00:01]} 12. Qf3 {[%emt 0:01:23]} Qf5 {[%emt 0:01:30]} 13. Qxf5 {[%emt 0:24:15]} exf5 {[%emt 0:00:13]} 14. O-O-O {[%emt 0:00:04]} Bd6 {[%emt 0:14:05]} 15. Rhe1+ {[%emt 0:00:11]} Ne7 {[%emt 0:01:24]} 16. d5 {[%emt 0:00:14]} Ne5 {[%emt 0:16:10]} 17. Bf4 {[%emt 0:00:57]} Nxc4 {[%emt 0:12:17]} 18. Bxd6 {[%emt 0:00:06]} Nxd6 {[%emt 0:00:02]} 19. dxc6 {[%emt 0:00:08]} Ne4 {[%emt 0:02:34]} 20. Nxe4 {[%emt 0:00:13]} fxe4 {[%emt 0:00:05]} 21. Rxe4 {[%emt 0:00:06]} bxc6 {[%emt 0:00:53]} 22. Rde1 {[%emt 0:00:06]} O-O {[%emt 0:00:54]} 23. Rxe7 {[%emt 0:00:04]} Rfd8 {[%emt 0:00:15]} 24. Rc7 {[%emt 0:00:37]} Rd6 {[%emt 0:00:35]} 25. Ree7 {[%emt 0:00:44]} Rad8 {[%emt 0:00:36]} 26. b3 {[%emt 0:00:07]} Rd5 {[%emt 0:01:11]} 27. f4 {[%emt 0:01:05]} Rf5 {[%emt 0:00:02]} 28. Re4 {[%emt 0:00:16]} a5 {[%emt 0:09:56]} 29. Rxc6 {[%emt 0:00:22]} f6 {[%emt 0:00:57]} 30. h4 {[%emt 0:02:10]} Kf7 {[%emt 0:00:37]} 31. Rc7+ {[%emt 0:05:31]} Kg6 {[%emt 0:01:10]} 32. h5+ {[%emt 0:00:08]} Kxh5 {[%emt 0:00:09]} 33. Rxg7 {[%emt 0:00:03]} h6 {[%emt 0:02:11]} 34. gxf6 {[%emt 0:03:32]} Rxf6 {[%emt 0:00:19]} 35. Re5+ {[%emt 0:00:07]} Kh4 {[%emt 0:00:08]} 36. Re1 {[%emt 0:00:07]} 1-0

[Event "7th Francophone-ch 2019"]
[Site "Paris"]
[Date "2019.08.04"]
[Round "1.7"]
[White "Huttl, Marko Diego"]
[Black "Prie, Eric"]
[Result "0-1"]
[ECO "B01"]
[WhiteElo "1569"]
[BlackElo "2436"]
[Annotator "NA"]
[PlyCount "82"]
[EventDate "2019.08.04"]
[EventType "swiss"]
[EventCountry "FRA"]
[SourceTitle "playchess.com"]
[Source "ChessBase"]
[SourceQuality "1"]
[TimeControl "40/5400+30:1800+30"]

1. e4 {[%emt 0:00:00]} d5 {[%emt 0:00:00]} 2. exd5 {[%emt 0:00:00]} Qxd5 {[%emt 0:00:00]} 3. Nc3 {[%emt 0:00:00]} Qa5 {[%emt 0:00:00]} 4. d4 {[%emt 0:00:24]} Nf6 {[%emt 0:00:26]} 5. Nf3 {[%emt 0:03:51]} Bf5 {[%emt 0:00:10]} 6. Bd2 {[%emt 0:03:10]} e6 {[%emt 0:06:28]} 7. Bc4 {[%emt 0:04:10]} Bb4 {[%emt 0:00:36]} 8. a3 {[%emt 0:05:17]} Bxc3 {[%emt 0:01:34]} 9. Bxc3 {[%emt 0:00:05]} Qb6 {[%emt 0:00:07]} 10. O-O {[%emt 0:18:26]} Nc6 {[%emt 0:00:18]} 11. h3 {[%emt 0:06:55]} O-O {[%emt 0:06:20]} 12. Qe2 {[%emt 0:03:37]} Rad8 {[%emt 0:12:25]} 13. Rfd1 {[%emt 0:05:04]} Be4 {[%emt 0:03:25]} 14. Ng5 {[%emt 0:16:06]} Nxd4 {[%emt 0:06:57]} 15. Bxd4 {[%emt 0:01:07]} Rxd4 {[%emt 0:00:06]} 16. Rxd4 {[%emt 0:00:42]} Qxd4 {[%emt 0:00:09]} 17. Rd1 {[%emt 0:04:35]} Qe5 {[%emt 0:00:16]} 18. Nxe4 {[%emt 0:01:10]} Qxe4 {[%emt 0:00:13]} 19. Qxe4 {[%emt 0:02:55]} Nxe4 {[%emt 0:00:25]} 20. Be2 {[%emt 0:00:05]} g5 {[%emt 0:09:32]} 21. Bf3 {[%emt 0:01:17]} Nd6 {[%emt 0:04:50]} 22. b3 {[%emt 0:02:26]} b6 {[%emt 0:00:45]} 23. Kf1 {[%emt 0:02:11]} Rd8 {[%emt 0:01:34]} 24. g4 {[%emt 0:04:08]} Kf8 {[%emt 0:01:05]} 25. Ke2 {[%emt 0:01:08]} Ke7 {[%emt 0:00:16]} 26. a4 {[%emt 0:01:26]} a5 {[%emt 0:00:23]} 27. Rh1 {[%emt 0:00:29]} h6 {[%emt 0:06:58]} 28. h4 {[%emt 0:00:46]} f6 {[%emt 0:02:19]} 29. Bc6 {[%emt 0:05:48]} Nf7 {[%emt 0:00:30]} 30. Bb5 {[%emt 0:01:08]} Ne5 {[%emt 0:04:43]} 31. f3 {[%emt 0:01:00]} Rd4 {[%emt 0:01:35]} 32. hxg5 {[%emt 0:01:08]} hxg5 {[%emt 0:00:09]} 33. Ke3 {[%emt 0:02:12]} Rf4 {[%emt 0:07:56]} 34. Be2 {[%emt 0:00:28]} Nd7 {[%emt 0:00:12]} 35. Bb5 {[%emt 0:02:01]} Nc5 {[%emt 0:04:45]} 36. Rd1 {[%emt 0:01:40]} e5 {[%emt 0:00:21]} 37. Bc6 {[%emt 0:00:52]} e4 {[%emt 0:00:21]} 38. fxe4 {[%emt 0:00:41]} Rxg4 {[%emt 0:00:10]} 39. Rf1 {[%emt 0:00:29]} Rg3+ {[%emt 0:01:01]} 40. Kf2 {[%emt 0:00:00]} Rc3 {[%emt 0:00:00]} 41. Rc1 {[%emt 0:01:19]} Nxb3 {[%emt 0:00:09]} 0-1

[Event "7th Francophone-ch 2019"]
[Site "Paris"]
[Date "2019.08.04"]
[Round "1.8"]
[White "Rakotomaharo, Fy Antenaina"]
[Black "Tran, Phat"]
[Result "1-0"]
[ECO "E71"]
[WhiteElo "2419"]
[BlackElo "2333"]
[Annotator "NA"]
[PlyCount "49"]
[EventDate "2019.08.04"]
[EventType "swiss"]
[EventCountry "FRA"]
[SourceTitle "playchess.com"]
[Source "ChessBase"]
[SourceQuality "1"]
[TimeControl "40/5400+30:1800+30"]

1. d4 {[%emt 0:00:00]} Nf6 {[%emt 0:00:00]} 2. c4 {[%emt 0:00:08]} g6 {[%emt 0:00:11]} 3. Nc3 {[%emt 0:00:24]} Bg7 {[%emt 0:00:34]} 4. e4 {[%emt 0:00:05]} d6 {[%emt 0:00:10]} 5. h3 {[%emt 0:00:02]} O-O {[%emt 0:04:03]} 6. Be3 {[%emt 0:00:06]} e5 {[%emt 0:04:37]} 7. d5 {[%emt 1:32:45]} Nbd7 {[%emt 0:04:37]} 8. g4 {[%emt 0:00:30]} Nc5 {[%emt 0:03:10]} 9. f3 {[%emt 0:00:00]} a5 {[%emt 0:06:19]} 10. Qd2 {[%emt 0:00:00]} Bd7 {[%emt 0:14:56]} 11. Nge2 {[%emt 0:00:00]} Kh8 {[%emt 0:09:54]} 12. h4 {[%emt 0:00:00]} h5 {[%emt 0:08:26]} 13. Ng3 {[%emt 0:00:00]} Kh7 {[%emt 0:15:30]} 14. Be2 {[%emt 0:00:00]} Rh8 {[%emt 0:03:25]} 15. Bg5 {[%emt 0:00:00]} hxg4 {[%emt 0:04:45]} 16. h5 {[%emt 0:00:00]} Kg8 {[%emt 0:02:05]} 17. O-O-O {[%emt 0:00:00]} Rh7 {[%emt 0:05:59]} 18. fxg4 {[%emt 0:00:00]} Qf8 {[%emt 0:03:30]} 19. Rdf1 {[%emt 0:00:00]} Nxg4 {[%emt 0:03:29]} 20. hxg6 {[%emt 0:00:00]} Rxh1 {[%emt 0:00:40]} 21. Nxh1 {[%emt 0:00:00]} f6 {[%emt 0:01:03]} 22. Bxg4 {[%emt 0:00:00]} Bxg4 {[%emt 0:00:34]} 23. Qh2 {[%emt 0:00:00]} Qd8 {[%emt 0:02:58]} 24. Qh7+ {[%emt 0:00:00]} Kf8 {[%emt 0:00:05]} 25. Rxf6+ {[%emt 0:00:00]} 1-0

[Event "7th Francophone-ch 2019"]
[Site "Paris"]
[Date "2019.08.04"]
[Round "1.9"]
[White "Annetti, Laurent"]
[Black "Dardha, Daniel"]
[Result "0-1"]
[ECO "B22"]
[WhiteElo "1756"]
[BlackElo "2420"]
[Annotator "NA"]
[PlyCount "60"]
[EventDate "2019.08.04"]
[EventType "swiss"]
[EventCountry "FRA"]
[SourceTitle "playchess.com"]
[Source "ChessBase"]
[SourceQuality "1"]
[TimeControl "40/5400+30:1800+30"]

1. e4 {[%emt 0:00:00]} c5 {[%emt 0:00:00]} 2. d4 {[%emt 0:00:00]} cxd4 {[%emt 0:00:00]} 3. c3 {[%emt 0:00:00]} Nf6 {[%emt 0:00:52]} 4. e5 {[%emt 0:00:14]} Nd5 {[%emt 0:00:05]} 5. cxd4 {[%emt 0:00:25]} d6 {[%emt 0:00:06]} 6. Bc4 {[%emt 0:00:43]} e6 {[%emt 0:00:19]} 7. Nf3 {[%emt 0:00:59]} Be7 {[%emt 0:00:21]} 8. O-O {[%emt 0:01:57]} O-O {[%emt 0:00:03]} 9. a3 {[%emt 0:06:38]} b6 {[%emt 0:00:33]} 10. Qe2 {[%emt 0:01:14]} Bb7 {[%emt 0:00:37]} 11. Bd3 {[%emt 0:02:47]} Nd7 {[%emt 0:02:54]} 12. Qe4 {[%emt 0:09:21]} g6 {[%emt 0:00:12]} 13. Bh6 {[%emt 0:00:58]} Re8 {[%emt 0:00:33]} 14. Qg4 {[%emt 0:08:24]} dxe5 {[%emt 0:14:56]} 15. dxe5 {[%emt 0:02:23]} Qc7 {[%emt 0:01:05]} 16. Re1 {[%emt 0:05:41]} Nc5 {[%emt 0:01:11]} 17. Bf1 {[%emt 0:04:58]} Nb3 {[%emt 0:04:40]} 18. Ra2 {[%emt 0:01:27]} Rac8 {[%emt 0:03:22]} 19. Nbd2 {[%emt 0:03:23]} Nxd2 {[%emt 0:01:46]} 20. Nxd2 {[%emt 0:04:03]} Bf8 {[%emt 0:07:53]} 21. Bxf8 {[%emt 0:02:09]} Rxf8 {[%emt 0:00:05]} 22. Nf3 {[%emt 0:02:14]} Qc2 {[%emt 0:02:48]} 23. Nd4 {[%emt 0:10:14]} Qd2 {[%emt 0:01:48]} 24. Raa1 {[%emt 0:07:56]} Qxb2 {[%emt 0:01:52]} 25. Bd3 {[%emt 0:01:54]} Qd2 {[%emt 0:03:33]} 26. Rad1 {[%emt 0:02:08]} Qf4 {[%emt 0:00:11]} 27. Qh3 {[%emt 0:00:40]} Nc3 {[%emt 0:03:04]} 28. g3 {[%emt 0:03:42]} Qg5 {[%emt 0:01:13]} 29. Rc1 {[%emt 0:07:09]} Qd8 {[%emt 0:02:42]} 30. Qg4 {[%emt 0:07:48]} Qd5 {[%emt 0:00:13]} 0-1

[Event "7th Francophone-ch 2019"]
[Site "Paris"]
[Date "2019.08.04"]
[Round "1.10"]
[White "Piscopo, Pierluigi"]
[Black "Ider, Borya"]
[Result "1-0"]
[ECO "B01"]
[WhiteElo "2407"]
[BlackElo "2506"]
[Annotator "ChessBase"]
[PlyCount "42"]
[EventDate "2019.08.04"]
[EventType "swiss"]
[EventCountry "FRA"]
[SourceTitle "playchess.com"]
[Source "ChessBase"]
[SourceQuality "1"]
[TimeControl "40/5400+30:1800+30"]

1. e4 {[%emt 0:00:00]} d5 {[%emt 0:00:00]} 2. exd5 {[%emt 0:00:00]} Nf6 {[%emt 0:00:00]} 3. d4 {[%emt 0:01:12]} Nxd5 {[%emt 0:00:00]} 4. Nf3 {[%emt 0:01:24]} Bg4 {[%emt 0:00:51]} 5. Be2 {[%emt 0:00:14]} e6 {[%emt 0:00:54]} 6. O-O {[%emt 0:09:11]} Bd6 {[%emt 0:05:53]} 7. h3 {[%emt 0:03:59]} h5 {[%emt 0:37:31]} 8. Re1 {[%emt 0:16:38]} Nf4 {[%emt 0:07:55]} 9. Bxf4 {[%emt 0:07:55]} Bxf4 {[%emt 0:00:12]} 10. d5 {[%emt 0:10:43]} Nd7 {[%emt 0:27:47]} 11. dxe6 {[%emt 0:21:42]} Bxe6 {[%emt 0:02:06]} 12. Nc3 {[%emt 0:07:41]} O-O {[%emt 0:03:29]} 13. Nd4 {[%emt 0:00:43]} Be5 {[%emt 0:03:37]} 14. Nxe6 {[%emt 0:04:14]} fxe6 {[%emt 0:00:38]} 15. Bc4 {[%emt 0:00:14]} Qf6 {[%emt 0:04:43]} 16. Qxd7 {[%emt 0:02:13]} Qxf2+ {[%emt 0:00:34]} 17. Kh1 {[%emt 0:00:06]} Rf3 {[%emt 0:00:54]} 18. Qxe6+ {[%emt 0:01:41]} Kh8 {[%emt 0:00:37]} 19. Rxe5 {[%emt 0:04:40]} g6 {[%emt 0:00:45]} 20. Rxh5+ {[%emt 0:00:33]} Kg7 {[%emt 0:00:11]} 21. Qe7+ {[%emt 0:00:08]} Rf7 {[%emt 0:00:33]} 1-0

[Event "7th Francophone-ch 2019"]
[Site "Paris"]
[Date "2019.08.05"]
[Round "2.1"]
[White "Mastrovasilis, Dimitrios"]
[Black "Meftahi, Houssem"]
[Result "1-0"]
[ECO "B48"]
[WhiteElo "2589"]
[BlackElo "2099"]
[Annotator "ChessBase"]
[PlyCount "37"]
[EventDate "2019.08.04"]
[EventType "swiss"]
[EventCountry "FRA"]
[SourceTitle "playchess.com"]
[Source "ChessBase"]
[SourceQuality "1"]
[TimeControl "40/5400+30:1800+30"]

1. e4 {[%emt 0:00:00]} c5 {[%emt 0:07:35]} 2. Nf3 {[%emt 0:01:15]} e6 {[%emt 0:00:35]} 3. d4 {[%emt 0:01:44]} cxd4 {[%emt 0:00:14]} 4. Nxd4 {[%emt 0:00:08]} Nc6 {[%emt 0:00:01]} 5. Nc3 {[%emt 0:00:27]} Qc7 {[%emt 0:00:08]} 6. Be3 {[%emt 0:02:43]} a6 {[%emt 0:00:03]} 7. Qd2 {[%emt 0:00:59]} Nf6 {[%emt 0:00:16]} 8. O-O-O {[%emt 0:00:31]} Bb4 {[%emt 0:00:39]} 9. f3 {[%emt 0:00:20]} Na5 {[%emt 0:00:24]} 10. Nb3 {[%emt 0:12:15]} Nxb3+ {[%emt 0:27:39]} 11. axb3 {[%emt 0:00:36]} Be7 {[%emt 0:02:01]} 12. Bf4 {[%emt 0:11:33]} e5 {[%emt 0:06:41]} 13. Bg5 {[%emt 0:02:37]} Qa5 {[%emt 0:01:35]} 14. Kb1 {[%emt 0:01:20]} d6 {[%emt 0:02:38]} 15. Bxf6 {[%emt 0:05:59]} gxf6 {[%emt 0:00:21]} 16. Bc4 {[%emt 0:04:50]} b5 {[%emt 0:14:29]} 17. Qd5 {[%emt 0:04:59]} O-O {[%emt 0:01:38]} 18. Qxa8 {[%emt 0:00:36]} bxc4 {[%emt 0:00:15]} 19. Nd5 {[%emt 0:08:34]} 1-0

[Event "7th Francophone-ch 2019"]
[Site "Paris"]
[Date "2019.08.05"]
[Round "2.2"]
[White "Bourhaleb, Mouneim"]
[Black "David, Alberto"]
[Result "0-1"]
[ECO "A62"]
[WhiteElo "2115"]
[BlackElo "2553"]
[Annotator "ChessBase"]
[PlyCount "60"]
[EventDate "2019.08.04"]
[EventType "swiss"]
[EventCountry "FRA"]
[SourceTitle "playchess.com"]
[Source "ChessBase"]
[SourceQuality "1"]
[TimeControl "40/5400+30:1800+30"]

1. d4 {[%emt 0:00:00]} Nf6 {[%emt 0:00:00]} 2. c4 {[%emt 0:00:00]} e6 {[%emt 0:00:11]} 3. g3 {[%emt 0:00:38]} c5 {[%emt 0:08:27]} 4. d5 {[%emt 0:08:12]} exd5 {[%emt 0:00:13]} 5. cxd5 {[%emt 0:00:13]} d6 {[%emt 0:00:15]} 6. Nc3 {[%emt 0:01:25]} g6 {[%emt 0:00:10]} 7. Bg2 {[%emt 0:01:46]} Bg7 {[%emt 0:00:10]} 8. Nf3 {[%emt 0:00:57]} O-O {[%emt 0:00:10]} 9. O-O {[%emt 0:00:19]} Re8 {[%emt 0:04:05]} 10. Re1 {[%emt 0:04:35]} Na6 {[%emt 0:11:06]} 11. h3 {[%emt 0:02:19]} Bd7 {[%emt 0:07:11]} 12. e4 {[%emt 0:05:27]} b5 {[%emt 0:02:51]} 13. e5 {[%emt 0:15:39]} dxe5 {[%emt 0:00:28]} 14. Nxe5 {[%emt 0:01:31]} b4 {[%emt 0:03:01]} 15. Nxd7 {[%emt 0:08:59]} Rxe1+ {[%emt 0:07:56]} 16. Qxe1 {[%emt 0:00:11]} Qxd7 {[%emt 0:00:10]} 17. Qe2 {[%emt 0:10:27]} Nc7 {[%emt 0:04:52]} 18. Ne4 {[%emt 0:12:13]} Nxe4 {[%emt 0:01:42]} 19. Qxe4 {[%emt 0:02:53]} Re8 {[%emt 0:00:20]} 20. Qc2 {[%emt 0:00:58]} Re1+ {[%emt 0:07:59]} 21. Kh2 {[%emt 0:00:06]} Bd4 {[%emt 0:00:19]} 22. d6 {[%emt 0:02:18]} Nb5 {[%emt 0:02:24]} 23. Rb1 {[%emt 0:04:17]} Nxd6 {[%emt 0:05:41]} 24. Be3 {[%emt 0:01:49]} Rxb1 {[%emt 0:00:19]} 25. Qxb1 {[%emt 0:01:33]} Bxe3 {[%emt 0:00:13]} 26. fxe3 {[%emt 0:00:04]} Nf5 {[%emt 0:03:50]} 27. Qe1 {[%emt 0:00:31]} Qd3 {[%emt 0:00:51]} 28. e4 {[%emt 0:00:48]} Qe3 {[%emt 0:01:33]} 29. Qxe3 {[%emt 0:03:54]} Nxe3 {[%emt 0:00:04]} 30. Bf3 {[%emt 0:00:08]} c4 {[%emt 0:00:09]} 0-1